Cogmind - Beta 13 @@@ ROGUE MODE // 2024.03.22 @ 12:38:21 Player: Oldman Pu Result: Destroyed by Y-45 Defender with Beam Rifle Performance ------------- Evolutions (1) 500 Regions Visited (3) 600 Robots Destroyed (121) 605 Value Destroyed (2925) 2925 Prototype IDs (2) 40 Alien Tech Used (0) 0 Bonus (711) 711 TOTAL SCORE: 5381 Bonus ------- High Alert Combat Kills 711 Cogmind --------- Core Integrity 0/400 Matter 280/500 Energy 265/265 System Corruption 9% Temperature Cool (9) Movement Rolling (125) Ox3 Location -9/Storage Parts ------- > --- POWER (1) -------- Improved Ion Engine > --- PROPULSION (2) --- Wheel > --- UTILITY (4) ------ Large Storage Unit High-capacity Matter Pod Improved Targeting Computer Light Armor Plating > --- WEAPON (2) ------- Improved Assault Rifle Improved Assault Rifle > --- INVENTORY (15) --- Reinforced Ion Engine Reinforced Ion Engine Heavy Ion Engine Aluminum Leg Aluminum Leg Aluminum Leg Compact Wheel High-capacity Battery (250) High-capacity Matter Pod (0) Improved Targeting Computer Heavy Assault Rifle Heavy Assault Rifle Improved Assault Rifle Improved Assault Rifle Improved Assault Rifle Peak State ------------ > --- POWER ------------ Heavy Ion Engine > --- PROPULSION ------- Wheel Wheel > --- UTILITY ---------- Large Storage Unit High-capacity Matter Pod Improved Targeting Computer Hardened Medium Armor Plating > --- WEAPON ----------- Improved Assault Rifle Improved Assault Rifle > --- INVENTORY -------- Improved Ion Engine Reinforced Ion Engine Reinforced Ion Engine Wheel Wheel High-capacity Battery Improved Targeting Computer Improved Targeting Computer Hardened Light Armor Plating Hardened Medium Armor Plating Improved Assault Rifle Improved Assault Rifle Improved Assault Rifle Improved Light Cannon Improved Light Cannon [Rating: 21] Favorites ----------- Power Reinforced Ion Engine Engine Reinforced Ion Engine Propulsion Wheel Leg Aluminum Leg Wheel Wheel Utility Improved Targeting Computer Device Heat Sink Storage Large Storage Unit Processor Improved Targeting Computer Protection Hardened Medium Armor Plating Weapon Improved Assault Rifle Energy Gun Medium Laser Ballistic Gun Improved Assault Rifle Ballistic Cannon Light Cannon Build | -11 -10 -9 -9 ------- Run | Yrd Mat Mat Sto Slots Evolved 2 | . . 2 . Power . | . . . . Propulsion . | . . . . Utility 2 | . . 2 . Weapon . | . . . . Parts Attached 68 | 7 10 29 22 Power 8 | 1 1 5 1 Engine 8 | 1 1 5 1 Core . | . . . . Reactor . | . . . . Propulsion 21 | 3 2 6 10 Treads . | . . . . Leg 6 | 2 . . 4 Wheel 15 | 1 2 6 6 Hover . | . . . . Flight . | . . . . Utility 24 | 1 5 10 8 Device 1 | . 1 . . Storage 8 | 1 3 3 1 Processor 2 | . 1 1 . Hackware . | . . . . Protection 13 | . . 6 7 Artifact . | . . . . Weapon 15 | 2 2 8 3 Energy Gun 1 | . 1 . . Energy Cannon . | . . . . Ballistic Gun 13 | 2 . 8 3 Ballistic Cannon 1 | . 1 . . Launcher . | . . . . Special Weapon . | . . . . Impact Weapon . | . . . . Slashing Weapon . | . . . . Piercing Weapon . | . . . . Special Melee Weapon . | . . . . Unidentified Prototypes 2 | . . 2 . Parts Lost 13 | . . 4 9 Power . | . . . . Propulsion 6 | . . 3 3 Utility 6 | . . 1 5 Weapon 1 | . . . 1 Highest Loss Streak 3 | . . 2 3 To Critical Strikes . | . . . . Average Slot Usage (%) 97 | . 97 98 95 Engine 11 | . 14 10 11 Leg 5 | . 12 . 5 Wheel 17 | . 14 21 14 Device 1 | . 4 . . Storage 18 | . 14 22 15 Processor 9 | . 8 10 11 Protection 7 | . . 10 15 Ballistic Gun 19 | . 15 21 21 Ballistic Cannon 4 | . 12 . . Naked Turns . | . . . . Heaviest Build 48 | 14 35 48 48 Greatest Support 32 | 20 26 26 32 Greatest Overweight (x) 4 | . 1 4 4 Average Overweight (x) 1 | . . 2 1 Largest Inventory Capacity 15 | 8 15 15 15 Average Capacity 13 | 7 12 15 15 Most Carried 15 | 3 15 15 15 Average Carried 12 | 1 10 14 12 Final Capacity 15 | 8 15 15 15 Final Carried 15 | 3 15 14 15 Class Distribution -------------------- 93% | Mutant 6% | Scavenger-Mutant Dominant Class ---------------- Mutant | -10/Materials Mutant | -9/Materials Mutant | -9/Storage Resources | -11 -10 -9 -9 ----------- Run | Yrd Mat Mat Sto Matter Collected 2816 | 188 503 1356 769 Remotely . | . . . . Salvage Created 4365 | . 406 2374 1585 Parts 285 | . 24 175 86 Haulers Intercepted 9 | . 2 6 1 Recyclers Shooed 1 | . 1 . . Parts Field Recycled . | . . . . Retrieved Matter . | . . . . Parts Self-Destructed . | . . . . Prevented . | . . . . Kills | -11 -10 -9 -9 ------- Run | Yrd Mat Mat Sto Combat Hostiles Destroyed 85 | . 9 50 26 Guns 81 | . 5 50 26 Cannons 4 | . 4 . . Classes Destroyed 12 | . 5 6 1 Worker 5 | . . 3 2 Builder 3 | . . 2 1 Tunneler 2 | . 1 1 . Hauler 9 | . 2 6 1 Recycler 6 | . . 1 5 Mechanic 1 | . . . 1 Watcher 10 | . 3 5 2 Swarmer 24 | . 3 15 6 Grunt 36 | . 6 21 9 Brawler 3 | . . 2 1 Duelist 2 | . . 2 . Sentry 20 | . . 10 10 Best Kill Streak 12 | . 4 10 12 Combat Bots Only 8 | . 3 8 6 Max Kills in Single Turn 2 | . 1 2 2 Gunslinging 1 | . . 1 1 Exploded . | . . . . Melee . | . . . . Uniques/NPCs Destroyed . | . . . . Combat | -11 -10 -9 -9 -------- Run | Yrd Mat Mat Sto Hostile Shots Fired 354 | . 47 159 148 Missed 103 | . 14 42 47 Damage Taken 3336 | . 407 1564 1365 Core 481 | . 79 225 177 Absorbed by Shields . | . . . . Regen/Repaired (Parts) 170 | . . 170 . Core Remaining (%) 84 | 100 68 . . Volleys Fired 300 | . 41 155 104 Largest 2 | . 2 2 2 Hottest 70 | . 70 46 46 Shots Fired 594 | . 83 309 202 Gun 563 | . 52 309 202 Cannon 31 | . 31 . . Launcher . | . . . . Special . | . . . . Kinetic 593 | . 82 309 202 Thermal 1 | . 1 . . Explosive . | . . . . Electromagnetic . | . . . . Robot Hit Streak 24 | . 11 22 24 Robot Miss Streak 5 | . 5 4 3 Penetration Max . | . . . . Secondary Targets 10 | . . 4 6 Max Gunslinging Chain 1 | . . 1 1 Shots Hit Robots 430 | . 48 222 160 Core Hits 178 | . 19 98 61 Critical Kills . | . . . . Critical Parts Destroyed 3 | . . 1 2 Critical Strikes 3 | . . 1 2 Destroy 3 | . . 1 2 Melee Attacks . | . . . . Impact . | . . . . Slashing . | . . . . Piercing . | . . . . Sneak Attacks . | . . . . Combat Hostiles . | . . . . Follow-up Attacks . | . . . . Damage Inflicted 6665 | . 715 3500 2450 Guns 6324 | . 374 3500 2450 Cannons 341 | . 341 . . Explosions . | . . . . Melee . | . . . . Ramming . | . . . . Kinetic 6665 | . 715 3500 2450 Thermal . | . . . . Explosive . | . . . . Electromagnetic . | . . . . Impact . | . . . . Slashing . | . . . . Piercing . | . . . . Highest Corruption 9 | . 1 4 9 Average Corruption 3 | . 1 3 6 Corruption Purged . | . . . . Corruption Blocked . | . . . . Effects 48 | . 6 22 20 Message Errors 10 | . 1 4 5 Matter Fused 12 | . 2 6 4 Heat Flow Errors 6 | . . 4 2 Energy Discharges 6 | . 1 2 3 Parts Rejected 1 | . . 1 . Data Loss (minor) 4 | . . 1 3 Data Loss (major) 2 | . 1 1 . Misfires 3 | . 1 1 1 Weapon Failures 4 | . . 2 2 Overload Shots . | . . . . Overflow Damage . | . . . . Projectiles . | . . . . Explosions . | . . . . Melee . | . . . . Knockbacks 5 | . 5 . . Impact . | . . . . Kinetic 4 | . 4 . . Secondary 1 | . 1 . . Self-Inflicted Damage . | . . . . Shots . | . . . . Rammed . | . . . . Targets Rammed . | . . . . Kicked . | . . . . Crushed . | . . . . Highest Temperature 275 | . 24 275 181 Average Temperature 41 | . 6 32 54 Received Heat Transfer 1236 | . 120 549 567 Effects 1 | . . 1 . Energy Bleed 1 | . . 1 . Siege Activations . | . . . . Robots Corrupted . | . . . . Combat Hostiles . | . . . . Parts Fried . | . . . . Impact Corruptions . | . . . . Robots Melted . | . . . . Combat Hostiles . | . . . . Parts Melted . | . . . . Heat Transferred . | . . . . Parts Sabotaged . | . . . . Parts Stolen . | . . . . Parts Stripped . | . . . . Power Chain Reactions . | . . . . Alert | -11 -10 -9 -9 ------- Run | Yrd Mat Mat Sto Peak Influence 1057 | . 241 1057 1030 Initial 426 | . . . 426 Average 361 | . 55 458 749 Maximum Alert Level 3 | . 1 3 3 Low Security (%) 43 | 100 98 18 . Level 1 17 | . 1 34 . Level 2 13 | . . 17 32 Level 3 24 | . . 28 67 Level 4 . | . . . . Level 5 . | . . . . High Security . | . . . . Max Security . | . . . . Sterilizations 1 | . . 1 . Squads Dispatched 15 | . 1 8 6 Investigation 2 | . 1 1 . Extermination . | . . . . Reinforcement 7 | . . 5 2 Assault 3 | . . 2 1 Garrison 3 | . . . 3 Intercept . | . . . . Searches Triggered . | . . . . Construction Impeded . | . . . . Haulers Reinforced . | . . . . Active Scanning Responses . | . . . . Cargo Convoy Interrupts . | . . . . Stealth | -11 -10 -9 -9 --------- Run | Yrd Mat Mat Sto Distress Signals 6 | . 1 4 1 Communications Jammed . | . . . . Distress Signals . | . . . . Times Spotted 122 | . 16 70 36 Peak Tracking Total 6 | . 5 5 6 Tactical Retreats 7 | . . 4 3 Traps | -11 -10 -9 -9 ------- Run | Yrd Mat Mat Sto Traps Triggered 6 | . 2 1 3 Indirectly . | . . . . Trap Hack Attempts . | . . . . Triggered . | . . . . Disarmed . | . . . . Reprogrammed . | . . . . Reused . | . . . . Traps Extracted . | . . . . Installed . | . . . . Triggered . | . . . . Machines | -11 -10 -9 -9 ---------- Run | Yrd Mat Mat Sto Machines Disabled 2 | . 1 1 . Max in Single Turn 1 | . 1 1 . Machines Repaired . | . . . . Machines Dismantled . | . . . . Machines Sabotaged . | . . . . Overloaded Fab Kills . | . . . . Hacking | -11 -10 -9 -9 --------- Run | Yrd Mat Mat Sto Machines Accessed 22 | . 6 13 3 Terminals 15 | . 5 8 2 Fabricators . | . . . . Repair Stations 2 | . . 2 . Recycling Units 2 | . 1 1 . Scanalyzers 2 | . . 2 . Garrison Access 1 | . . . 1 Total Hacks 52 | . 13 31 8 Successful 24 | . 6 18 . Failed 28 | . 7 13 8 Catastrophic 2 | . 1 . 1 Database Lockouts . | . . . . Manual . | . . . . Terminals 33 | . 10 17 6 Fabricators . | . . . . Repair Stations 7 | . . 7 . Recycling Units 4 | . 3 1 . Scanalyzers 6 | . . 6 . Garrison Access 2 | . . . 2 Terminal Hacks 13 | . 3 10 . Record 2 | . . 2 . Level Access Points 1 | . 1 . . Branch Access Points 1 | . . 1 . Locate Traps 6 | . 2 4 . Maintenance Status 1 | . . 1 . Hauler Manifests 1 | . . 1 . Zone Layout 1 | . . 1 . Fabricator Hacks . | . . . . Repair Station Hacks 4 | . . 4 . Scan Component 3 | . . 3 . Repair 1 | . . 1 . Recycling Unit Hacks 4 | . 3 1 . Process 1 | . 1 . . Report Inventory 2 | . 1 1 . Retrieve Matter 1 | . 1 . . Scanalyzer 3 | . . 3 . Insert Component 1 | . . 1 . Analyze 2 | . . 2 . Garrison Access Hacks . | . . . . Unauthorized Hacks . | . . . . Terminals . | . . . . Fabricators . | . . . . Repair Stations . | . . . . Recycling Units . | . . . . Scanalyzers . | . . . . Garrison Access . | . . . . Data Cores Recovered . | . . . . Used . | . . . . Hacking Detections 14 | . 5 7 2 Full Trace Events 3 | . 1 1 1 Feedback Events . | . . . . Feedback Blocked . | . . . . Robot Schematics Acquired . | . . . . Robots Built . | . . . . Authchips . | . . . . Time . | . . . . Total Robot Build Rating . | . . . . Part Schematics Acquired 1 | . . 1 . Parts Built . | . . . . Authchips . | . . . . Time . | . . . . Total Part Build Rating . | . . . . Parts Repaired 1 | . . 1 . Time 38 | . . 38 . Parts Recycled . | . . . . Recycled Matter 46 | . 46 . . Retrieved Matter 46 | . 46 . . Retrieved Components . | . . . . Parts Scanalyzed 1 | . . 1 . Part Schematics Acquired 1 | . . 1 . Parts Damaged . | . . . . Bothacking | -11 -10 -9 -9 ------------ Run | Yrd Mat Mat Sto Used RIF Installer . | . . . . Robots Hacked . | . . . . Non-combat . | . . . . Combat . | . . . . Robot Hacks Applied . | . . . . Relay Couplers Released . | . . . . Fabnet Peak Effective % . | . . . . Robots Rewired . | . . . . Allies Hacked . | . . . . Hacks Repelled . | . . . . Allies | -11 -10 -9 -9 -------- Run | Yrd Mat Mat Sto Total Allies . | . . . . Largest Group . | . . . . Highest-Rated Group . | . . . . Highest-Rated Ally . | . . . . Total Orders . | . . . . Ally Attacks . | . . . . Total Damage . | . . . . Kills . | . . . . Allies Corrupted . | . . . . Allies Melted . | . . . . Intel | -11 -10 -9 -9 ------- Run | Yrd Mat Mat Sto Robot Analysis Total . | . . . . Derelict Logs Recovered . | . . . . Drone Launches . | . . . . Drone Recoveries . | . . . . Exploration | -11 -10 -9 -9 ------------- Run | Yrd Mat Mat Sto Turns Passed 4897 | 69 1645 2421 762 Spaces Moved 3033 | 51 1157 1548 277 Core 7 | 7 . . . Treads . | . . . . Legs 432 | 44 343 . 45 Wheels 2594 | . 814 1548 232 Hover . | . . . . Flight . | . . . . Fastest Speed 50 | 50 90 95 105 Average Speed 117 | 110 121 111 138 Slowest Speed 260 | 120 190 140 260 Overloaded Moves . | . . . . Propulsion Burnouts . | . . . . Robots Hopped . | . . . . Cave-ins Triggered . | . . . . Exploration Rate (%) 60 | 4 100 98 39 Regions Visited 3 Branch Regions 1 Pre-discovered Areas . | . . . . Known Exits Taken 2 | . 1 1 . Unknown Exits Taken 1 | 1 . . . Scrap Searched . | . . . . Spaces Dug . | . . . . Terrain Destroyed . | . . . . Melee . | . . . . Projectile . | . . . . AOE . | . . . . Terrain Rammed . | . . . . Walls Destroyed . | . . . . Machines Disabled . | . . . . Actions | -11 -10 -9 -9 --------- Run | Yrd Mat Mat Sto Total 3773 | 60 1314 1947 452 Wait 282 | . 74 171 37 Move 3030 | 50 1156 1547 277 Hop . | . . . . Pick Up 50 | 3 20 20 7 Fast Attach 16 | 6 4 5 1 Attach 17 | . . 7 10 Detach 1 | . . . 1 Swap 35 | 1 6 17 11 Drop 42 | . 13 25 4 Fire 300 | . 41 155 104 Melee . | . . . . Ram . | . . . . Kick . | . . . . Crush . | . . . . Escape Stasis . | . . . . Rewire . | . . . . Trap . | . . . . Miscellaneous . | . . . . Route ------- -11/Scrapyard -10/Materials (discovered 5 exits: *Mat x3 / [*Min] / [*Sub]) -9/Materials (discovered 6 exits: [*Mat x3] / *Min x2 / *Sto) -9/Storage History --------- Turn | Location | Event 5 | -11/Scrapyard | Discovered new exit (range 15) 70 | -11/Scrapyard | Entered Materials 124 | -10/Materials | Identified exit to Materials 304 | -10/Materials | Build established: Mutant 740 | -10/Materials | Discovered new exit (range 10) 1480 | -10/Materials | Discovered new exit (range 13) 1715 | -10/Materials | Entered another Materials area 1715 | -9/Materials | Evolved 2 slots: Utility x2 2048 | -9/Materials | Discovered new exit (range 16) 2749 | -9/Materials | Discovered new exit (range 16) 3001 | -9/Materials | Discovered new exit (range 9) 3140 | -9/Materials | Destroyed 8 combat bots 3180 | -9/Materials | Identified exit to Mines 3180 | -9/Materials | Identified exit to Storage 3315 | -9/Materials | First assault squad dispatched 3361 | -9/Materials | Core integrity fell below 50% 3617 | -9/Materials | Repaired Hrd. Medium Armor Plating 4006 | -9/Materials | Discovered new exit (range 16) 4026 | -9/Materials | Sterilization system engaged 4026 | -9/Materials | Non-combat units ordered to evacuate 4126 | -9/Materials | Combat units ordered to evacuate 4136 | -9/Materials | Entered Storage 4390 | -9/Storage | Lost 3 parts (1n2u) 4536 | -9/Storage | First assault squad dispatched 4632 | -9/Storage | Garrison activated, responded to threat 4640 | -9/Storage | Core integrity fell below 20% 4748 | -9/Storage | Garrison activated, responded to threat 4879 | -9/Storage | Garrison activated, responded to threat 4898 | -9/Storage | Destroyed by Y-45 Defender with Beam Rifle Last Messages --------------- 04816_ Acquired Hcp. Matter Pod. 04834_ Acquired 22 matter. 04847_ Hrd. Light Armor Plating destroyed. 04852_ Lgt. Armor Plating destroyed. 04856_ G-34 Mercenary destroyed. 04856_ Switching to secondary target: G-34 Mercenary. 04859_ G-34 Mercenary destroyed. 04866_ System corrupted: Energy discharge (-98). 04866_ Acquired 45 matter. 04870_ Acquired 35 matter. 04870_ R-06 Scavenger collects Heat Sink. 04873_ R-06 Scavenger collects Sml. Laser. 04879_ R-06 Scavenger calls for garrison support. 04879_ ALERT: Activating Garrison Access S001. 04879_ R-06 Scavenger destroyed. 04882_ M-13 Machinist destroyed. 04888_ Dropped Wheel. 04888_ Acquired Wheel. 04890_ Dropped Aluminum Leg. 04894_ UD%VZQAKU8PZD:FD8/LWLDZ80VE4I/CJ7CEA Map ----- +----------------------------------------------------+ | ??????????????# * #% + ##[ ]#?????????? | | ??????????????# # %# ##" "##????????? | | ?????????????# ! ?#% # ## [ T#????????? | | ?????????????############ !###### ##* ##????????? | | ???????????????????????# =%*########+############# | | ???????????????????????+ =! # # | | ???????????????????????# + # | | ???????????????????????# ########## # # | | ???????????????????????## ##????????# # # | | ????????????????????????# #?????????# # # | | ????????????????????????# #?????????+ # # | | ????????????????????????#u #?????????# # # | | ????????????????????????# #?????????# + # | | ????????????????????????# #?######### # # | | ????????????????????????#m #?# *= %!## #######+## | | ????????????????????????# #?#[!*[ =## T#????# #? | | ????????????????????????# #?# "="%=## ##????# #? | | ????????????????????????# ### "G"*!#""""?????# #? | | ????????????????????????# ## ="""%!#?????????# #? | | ????????????????????????+ ###*[!%= #?????????# #? | | ????????????????????????# #####+####?????????# #? | | ????????????????????????# %! =#????????????# #? | | ????????????????????????# g#####%#????????????# #? | | ????????????????????#####/######"#????????????# #? | | ????????????????????# ==gY!= ##!#????????????# #? | | ????????????????????# [!@ = ## #????????????# #? | | ???????????????????##=[ * % ## ############## #? | | ???????????????????# [! =!! ## #? | | ???????????????????##= = ###################? | | ????????????????????# = #??????????????????? | | ????????????????????# #??????????????????? | | ????????????????????# #??????????????????? | | ????????????????????###########??????????????????? | | | | | | | | | | | | | | | | | | | | | | | | | | | | | | | | | | | +----------------------------------------------------+ Best States ------------- Heat Dissipation 35 Energy Generation 14 Energy Capacity 515 Matter Stores 500 Matter Capacity 500 Sight Range 16 Terrain Scan Density 10 Armor Coverage 375 Evasion (%) 55 Targeting Accuracy 6 Item Schematics ----------------- Imp. Assault Rifle | -9/Materials | Scanalyzed Robot Schematics ------------------ None Fabricated ------------ Nothing Alien Tech Used ----------------- None Achievements -------------- None Challenges ------------ None Game ------ Seed BlastPhasingWeb Manual? 0 Play Time 00:49:10 Cumulative 186.2 hours Start 2024.03.22 @ 11:30:07 End 2024.03.22 @ 12:38:21 Sessions 1 Manual Loads 0 Difficulty Rogue Special Mode None Game No. 133 Rogue 121 Adventurer 12 Explorer 0 Win Type - Total 1 Types 1/0/0/0/0/0/0/0/0 Lore% 26 Gallery% 42 Achievement% 31 Wizard Run 0 Options --------- Layout 1 ASCII 0 Keyboard 0 Movement Mouse Keybinds 0 Fullscreen 1 Font 32/SmallcapsGlow Map View 77x35 Zoom Use 0% Tactical HUD 1 Map Filters NONE Filters NONE Steam 1 RUN: d5421f33-c227-4af8-a39f-798736a901c0